Workbook

Sheet Sheet1
B1: The Secant Parabola Method
C2: for Root Finding
B4: This graphing utility applies the
C5: Secant Parabola Method
B6: to locate the real roots
C7: of any desired function
D8: y = f(x)
B9: on any interval from x = a to x = b.
A11: Enter the function in terms of x: f(x) = | F11: exp(x)-x^2
A14: Now enter the interval for x:
C15: xMin = | D15: -1 | J15: The graph of the function y = | M15: =F11 -> exp(x)-x^2
C16: xMax = | D16: 0
J17: The initial approximation is x = | M17: =Sheet2!$G$3 -> -0.50000000 | N17: y = | O17: =Sheet2!$H$3 -> 0.3484805754
A19: Click each item below for suggestions and investigations | J19: The 2nd approximation is x = | M19: =Sheet2!$I$3 -> -0.69628123 | N19: y = | O19: =Sheet2!$J$3 -> 0.006585303791
C20: Item 1
C21: Item 2 | J21: The 3rd approximation is x = | M21: =Sheet2!$K$3 -> -0.67031589 | N21: y = | O21: =Sheet2!$L$3 -> 0.05353142061
C22: Item 3
J23: The 4th approximation is x = | M23: =Sheet2!$M$3 -> -0.67422957 | N23: y = | O23: =Sheet2!$N$3 -> 0.05353142061
J25: The 5th approximation is x = | M25: =Sheet2!$O$3 -> -0.67052717 | N25: y = | O25: =Sheet2!$P$3 -> 0.05353142061
A26: To access/download all the DIGMath Apps for Calculus
A27: Click this link: | C27: DIGMath for Calculus
A29: Created by: Sheldon P. Gordon
A30: Farmingdale State College
A31: Development of this module was supported by the
A32: NSF's Division of Undergraduate Education
A33: under grants DUE-0310123 and DUE-0442160.

Sheet Sheet2
C1: x | D1: y = f(x) | H1: y's | J1: y's | L1: y's
D2: =Sheet1!#REF! ->  | F2: x0 = | G2: =xMin -> -1 | H2: =LOOKUP(x00,C$3:C$203,D$3:D$203) -> -0.6321205588 | I2: =G2 -> -1 | J2: =LOOKUP(x00,$C$3:$C$203,$D$3:$D$203) -> -0.6321205588 | K2: =I2 -> -1 | L2: =LOOKUP(x00,$C$3:$C$203,$D$3:$D$203) -> -0.6321205588 | M2: =K2 -> -1 | N2: =LOOKUP(x00,$C$3:$C$203,$D$3:$D$203) -> -0.6321205588 | O2: =M2 -> -1 | P2: =LOOKUP(x00,$C$3:$C$203,$D$3:$D$203) -> -0.6321205588
C3: =xMin -> -1 | D3: =EXP(x)-x^2 -> -0.6321205588 | F3: x1 = | G3: =(xMax+xMin)/2 -> -0.5 | H3: =LOOKUP(G3,$C$3:$C$203,$D$3:$D$203) -> 0.3484805754 | I3: =G15 -> -0.6962812264 | J3: =LOOKUP(I3,$C$3:$C$203,$D$3:$D$203) -> 0.006585303791 | K3: =I15 -> -0.6703158918 | L3: =LOOKUP(K3,$C$3:$C$203,$D$3:$D$203) -> 0.05353142061 | M3: =K15 -> -0.6742295704 | N3: =LOOKUP(M3,$C$3:$C$203,$D$3:$D$203) -> 0.05353142061 | O3: =M15 -> -0.6705271695 | P3: =LOOKUP(O3,$C$3:$C$203,$D$3:$D$203) -> 0.05353142061
C4: =C3+Sheet2!B$12 -> -0.995 | D4: -0.6203015555 | F4: x2 = | G4: =xMax -> 0 | H4: =LOOKUP(x000+0.001,$C3:$C203,$D3:$D203) -> 1 | I4: =G4 -> 0 | J4: =LOOKUP(x000+0.001,$C3:$C203,$D3:$D203) -> 1 | K4: =I4 -> 0 | L4: =LOOKUP(x000+0.001,$C3:$C203,$D3:$D203) -> 1 | M4: =K4 -> 0 | N4: =LOOKUP(x000+0.001,$C3:$C203,$D3:$D203) -> 1 | O4: =M4 -> 0 | P4: =LOOKUP(x000+0.001,$C3:$C203,$D3:$D203) -> 1
C5: =C4+Sheet2!B$12 -> -0.99 | D5: -0.608523309
C6: =C5+Sheet2!B$12 -> -0.985 | D6: -0.5967857731 | F6: a = | G6: =((H$2-H$3)*(x00-x000)-(H$2-H$4)*(x00-G$3))/((x00^2-G$3^2)*(x00-x000)-(x00^2-x000^2)*(x00-G$3)) -> -0.6581634194 | I6: =((J$2-J$3)*(x00-x000)-(J$2-J$4)*(x00-I$3))/((x00^2-I$3^2)*(x00-x000)-(x00^2-x000^2)*(x00-I$3)) -> -0.6762080657 | K6: =((L$2-L$3)*(x00-x000)-(L$2-L$4)*(x00-K$3))/((x00^2-K$3^2)*(x00-x000)-(x00^2-x000^2)*(x00-K$3)) -> -0.66775013 | M6: =((N$2-N$3)*(x00-x000)-(N$2-N$4)*(x00-M$3))/((x00^2-M$3^2)*(x00-x000)-(x00^2-x000^2)*(x00-M$3)) -> -0.7009311611 | O6: =((P$2-P$3)*(x00-x000)-(P$2-P$4)*(x00-O$3))/((x00^2-O$3^2)*(x00-x000)-(x00^2-x000^2)*(x00-O$3)) -> -0.6695286749
C7: =C6+Sheet2!B$12 -> -0.98 | D7: -0.5850889011 | F7: b = | G7: =((H$2-H$4)*(x00-x000)-(H$2-H$3)*(x00-G$3))/((x00^2-G$3^2)*(x00-x000)-(x00^2-x000^2)*(x00-G$3)) -> -4.567279967 | I7: =((J$2-J$4)*(x00-x000)-(J$2-J$3)*(x00-I$3))/((x00^2-I$3^2)*(x00-x000)-(x00^2-x000^2)*(x00-I$3)) -> -6.800532324 | K7: =((L$2-L$4)*(x00-x000)-(L$2-L$3)*(x00-K$3))/((x00^2-K$3^2)*(x00-x000)-(x00^2-x000^2)*(x00-K$3)) -> -6.362532741 | M7: =((N$2-N$4)*(x00-x000)-(N$2-N$3)*(x00-M$3))/((x00^2-M$3^2)*(x00-x000)-(x00^2-x000^2)*(x00-M$3)) -> -6.413810778 | O7: =((P$2-P$4)*(x00-x000)-(P$2-P$3)*(x00-O$3))/((x00^2-O$3^2)*(x00-x000)-(x00^2-x000^2)*(x00-O$3)) -> -6.365262433
C8: =C7+Sheet2!B$12 -> -0.975 | D8: -0.5734326464 | F8: c = | G8: =H2-G6*x00^2-G7*H2 -> -2.861028704 | I8: =J2-I6*x00^2-I7*J2 -> -4.254668786 | K8: =L2-K6*x00^2-K7*L2 -> -3.98625818 | M8: =N2-M6*x00^2-M7*N2 -> -3.985491051 | O8: =P2-O6*x00^2-O7*P2 -> -3.98620513
C9: =C8+Sheet2!B$12 -> -0.97 | D9: -0.5618169619
C10: =C9+Sheet2!B$12 -> -0.965 | D10: -0.5502418003
C11: =C10+Sheet2!B$12 -> -0.96 | D11: -0.538707114
A12: delta x = | B12: =(xMax-xMin)/200 -> 0.005 | C12: =C11+Sheet2!B$12 -> -0.955 | D12: -0.5272128554 | F12: xL = | G12: =(-G$7-SQRT(G$7^2-4*(G$6)*G$8))/2/(G$6) -> -0.6962812264 | I12: =(-I$7-SQRT(I$7^2-4*(I$6)*I$8))/2/(I$6) -> -0.6703158918 | K12: =(-K$7-SQRT(K$7^2-4*(K$6)*K$8))/2/(K$6) -> -0.6742295704 | M12: =(-M$7-SQRT(M$7^2-4*(M$6)*M$8))/2/(M$6) -> -0.6705271695 | O12: =(-O$7-SQRT(O$7^2-4*(O$6)*O$8))/2/(O$6) -> -0.6740309477
C13: =C12+Sheet2!B$12 -> -0.95 | D13: -0.5157589765 | F13: xR = | G13: =(-G$7+SQRT(G$7^2-4*(G$6)*G$8))/2/(G$6) -> -6.243150277 | I13: =(-I$7+SQRT(I$7^2-4*(I$6)*I$8))/2/(I$6) -> -9.38654777 | K13: =(-K$7+SQRT(K$7^2-4*(K$6)*K$8))/2/(K$6) -> -8.854084172 | M13: =(-M$7+SQRT(M$7^2-4*(M$6)*M$8))/2/(M$6) -> -8.479887499 | O13: =(-O$7+SQRT(O$7^2-4*(O$6)*O$8))/2/(O$6) -> -8.833048692
C14: =C13+Sheet2!B$12 -> -0.945 | D14: -0.5043454291
C15: =C14+Sheet2!B$12 -> -0.94 | D15: -0.4929721646 | F15: next x = | G15: =IF(AND(G12>=x00,G12<=x000),G12,G13) -> -0.6962812264 | I15: =IF(AND(I12>=x00,I12<=x000),I12,I13) -> -0.6703158918 | K15: =IF(AND(K12>=x00,K12<=x000),K12,K13) -> -0.6742295704 | M15: =IF(AND(M12>=x00,M12<=x000),M12,M13) -> -0.6705271695 | O15: =IF(AND(O12>=x00,O12<=x000),O12,O13) -> -0.6740309477
C16: =C15+Sheet2!B$12 -> -0.935 | D16: -0.4816391345
C17: =C16+Sheet2!B$12 -> -0.93 | D17: -0.4703462896
C18: =C17+Sheet2!B$12 -> -0.925 | D18: -0.4590935809
C19: =C18+Sheet2!B$12 -> -0.92 | D19: -0.4478809589
C20: =C19+Sheet2!B$12 -> -0.915 | D20: -0.4367083739
C21: =C20+Sheet2!B$12 -> -0.91 | D21: -0.425575776
C22: =C21+Sheet2!B$12 -> -0.905 | D22: -0.4144831149
C23: =C22+Sheet2!B$12 -> -0.9 | D23: -0.4034303403
C24: =C23+Sheet2!B$12 -> -0.895 | D24: -0.3924174014
C25: =C24+Sheet2!B$12 -> -0.89 | D25: -0.3814442472
C26: =C25+Sheet2!B$12 -> -0.885 | D26: -0.3705108267
C27: =C26+Sheet2!B$12 -> -0.88 | D27: -0.3596170883
C28: =C27+Sheet2!B$12 -> -0.875 | D28: -0.3487629803
C29: =C28+Sheet2!B$12 -> -0.87 | D29: -0.3379484508
C30: =C29+Sheet2!B$12 -> -0.865 | D30: -0.3271734474
C31: =C30+Sheet2!B$12 -> -0.86 | D31: -0.3164379177
C32: =C31+Sheet2!B$12 -> -0.855 | D32: -0.3057418089
C33: =C32+Sheet2!B$12 -> -0.85 | D33: -0.2950850681
C34: =C33+Sheet2!B$12 -> -0.845 | D34: -0.2844676418
C35: =C34+Sheet2!B$12 -> -0.84 | D35: -0.2738894766
C36: =C35+Sheet2!B$12 -> -0.835 | D36: -0.2633505186
C37: =C36+Sheet2!B$12 -> -0.83 | D37: -0.2528507137
C38: =C37+Sheet2!B$12 -> -0.825 | D38: -0.2423900075
C39: =C38+Sheet2!B$12 -> -0.82 | D39: -0.2319683455
C40: =C39+Sheet2!B$12 -> -0.815 | D40: -0.2215856726
C41: =C40+Sheet2!B$12 -> -0.81 | D41: -0.2112419338
C42: =C41+Sheet2!B$12 -> -0.805 | D42: -0.2009370734
C43: =C42+Sheet2!B$12 -> -0.8 | D43: -0.1906710359
C44: =C43+Sheet2!B$12 -> -0.795 | D44: -0.1804437651
C45: =C44+Sheet2!B$12 -> -0.79 | D45: -0.1702552047
C46: =C45+Sheet2!B$12 -> -0.785 | D46: -0.1601052982
C47: =C46+Sheet2!B$12 -> -0.78 | D47: -0.1499939887
C48: =C47+Sheet2!B$12 -> -0.775 | D48: -0.139921219
C49: =C48+Sheet2!B$12 -> -0.77 | D49: -0.1298869317
C50: =C49+Sheet2!B$12 -> -0.765 | D50: -0.119891069
C51: =C50+Sheet2!B$12 -> -0.76 | D51: -0.109933573
C52: =C51+Sheet2!B$12 -> -0.755 | D52: -0.1000143853
C53: =C52+Sheet2!B$12 -> -0.75 | D53: -0.09013344726
C54: =C53+Sheet2!B$12 -> -0.745 | D54: -0.08029070006
C55: =C54+Sheet2!B$12 -> -0.74 | D55: -0.07048608448
C56: =C55+Sheet2!B$12 -> -0.735 | D56: -0.06071954103
C57: =C56+Sheet2!B$12 -> -0.73 | D57: -0.05099100991
C58: =C57+Sheet2!B$12 -> -0.725 | D58: -0.04130043104
C59: =C58+Sheet2!B$12 -> -0.72 | D59: -0.03164774404
C60: =C59+Sheet2!B$12 -> -0.715 | D60: -0.0220328882
C61: =C60+Sheet2!B$12 -> -0.71 | D61: -0.01245580254
C62: =C61+Sheet2!B$12 -> -0.705 | D62: -0.002916425744
C63: =C62+Sheet2!B$12 -> -0.7 | D63: 0.006585303791
C64: =C63+Sheet2!B$12 -> -0.695 | D64: 0.01604944799
C65: =C64+Sheet2!B$12 -> -0.69 | D65: 0.02547606907
C66: =C65+Sheet2!B$12 -> -0.685 | D66: 0.03486522957
C67: =C66+Sheet2!B$12 -> -0.68 | D67: =EXP(x)-x^2 -> 0.04421699237
C68: =C67+Sheet2!B$12 -> -0.675 | D68: 0.05353142061
C69: =C68+Sheet2!B$12 -> -0.67 | D69: 0.06280857779
C70: =C69+Sheet2!B$12 -> -0.665 | D70: 0.07204852771
C71: =C70+Sheet2!B$12 -> -0.66 | D71: 0.08125133449
C72: =C71+Sheet2!B$12 -> -0.655 | D72: 0.09041706259
C73: =C72+Sheet2!B$12 -> -0.65 | D73: 0.09954577676
C74: =C73+Sheet2!B$12 -> -0.645 | D74: 0.1086375421
C75: =C74+Sheet2!B$12 -> -0.64 | D75: 0.117692424
C76: =C75+Sheet2!B$12 -> -0.635 | D76: 0.1267104883
C77: =C76+Sheet2!B$12 -> -0.63 | D77: 0.135691801
C78: =C77+Sheet2!B$12 -> -0.625 | D78: 0.1446364285
C79: =C78+Sheet2!B$12 -> -0.62 | D79: 0.1535444376
C80: =C79+Sheet2!B$12 -> -0.615 | D80: 0.1624158953
C81: =C80+Sheet2!B$12 -> -0.61 | D81: 0.1712508691
C82: =C81+Sheet2!B$12 -> -0.605 | D82: 0.1800494266
C83: =C82+Sheet2!B$12 -> -0.6 | D83: 0.1888116361
C84: =C83+Sheet2!B$12 -> -0.595 | D84: 0.1975375659
C85: =C84+Sheet2!B$12 -> -0.59 | D85: 0.2062272847
C86: =C85+Sheet2!B$12 -> -0.585 | D86: 0.2148808618
C87: =C86+Sheet2!B$12 -> -0.58 | D87: 0.2234983666
C88: =C87+Sheet2!B$12 -> -0.575 | D88: 0.2320798688
C89: =C88+Sheet2!B$12 -> -0.57 | D89: 0.2406254387
C90: =C89+Sheet2!B$12 -> -0.565 | D90: 0.2491351468
C91: =C90+Sheet2!B$12 -> -0.56 | D91: 0.2576090638
C92: =C91+Sheet2!B$12 -> -0.555 | D92: 0.2660472612
C93: =C92+Sheet2!B$12 -> -0.55 | D93: 0.2744498104
C94: =C93+Sheet2!B$12 -> -0.545 | D94: 0.2828167833
C95: =C94+Sheet2!B$12 -> -0.54 | D95: 0.2911482524
C96: =C95+Sheet2!B$12 -> -0.535 | D96: 0.2994442901
C97: =C96+Sheet2!B$12 -> -0.53 | D97: 0.3077049697
C98: =C97+Sheet2!B$12 -> -0.525 | D98: 0.3159303644
C99: =C98+Sheet2!B$12 -> -0.52 | D99: 0.324120548
C100: =C99+Sheet2!B$12 -> -0.515 | D100: 0.3322755946
C101: =C100+Sheet2!B$12 -> -0.51 | D101: 0.3403955788
C102: =C101+Sheet2!B$12 -> -0.505 | D102: 0.3484805754
C103: =C102+Sheet2!B$12 -> -0.5 | D103: 0.3565306597
C104: =C103+Sheet2!B$12 -> -0.495 | D104: 0.3645459073
C105: =C104+Sheet2!B$12 -> -0.49 | D105: 0.3725263942
C106: =C105+Sheet2!B$12 -> -0.485 | D106: 0.3804721968
C107: =C106+Sheet2!B$12 -> -0.48 | D107: 0.3883833918
C108: =C107+Sheet2!B$12 -> -0.475 | D108: 0.3962600565
C109: =C108+Sheet2!B$12 -> -0.47 | D109: 0.4041022683
C110: =C109+Sheet2!B$12 -> -0.465 | D110: 0.4119101052
C111: =C110+Sheet2!B$12 -> -0.46 | D111: 0.4196836455
C112: =C111+Sheet2!B$12 -> -0.455 | D112: 0.4274229679
C113: =C112+Sheet2!B$12 -> -0.45 | D113: 0.4351281516
C114: =C113+Sheet2!B$12 -> -0.445 | D114: 0.442799276
C115: =C114+Sheet2!B$12 -> -0.44 | D115: 0.4504364211
C116: =C115+Sheet2!B$12 -> -0.435 | D116: 0.4580396671
C117: =C116+Sheet2!B$12 -> -0.43 | D117: 0.4656090947
C118: =C117+Sheet2!B$12 -> -0.425 | D118: 0.4731447851
C119: =C118+Sheet2!B$12 -> -0.42 | D119: 0.4806468198
C120: =C119+Sheet2!B$12 -> -0.415 | D120: 0.4881152807
C121: =C120+Sheet2!B$12 -> -0.41 | D121: 0.4955502501
C122: =C121+Sheet2!B$12 -> -0.405 | D122: 0.5029518109
C123: =C122+Sheet2!B$12 -> -0.4 | D123: 0.510320046
C124: =C123+Sheet2!B$12 -> -0.395 | D124: 0.5176550392
C125: =C124+Sheet2!B$12 -> -0.39 | D125: 0.5249568745
C126: =C125+Sheet2!B$12 -> -0.385 | D126: 0.5322256362
C127: =C126+Sheet2!B$12 -> -0.38 | D127: 0.5394614092
C128: =C127+Sheet2!B$12 -> -0.375 | D128: 0.5466642788
C129: =C128+Sheet2!B$12 -> -0.37 | D129: 0.5538343306
C130: =C129+Sheet2!B$12 -> -0.365 | D130: 0.5609716509
C131: =C130+Sheet2!B$12 -> -0.36 | D131: =EXP(x)-x^2 -> 0.5680763261
C132: =C131+Sheet2!B$12 -> -0.355 | D132: 0.5751484432
C133: =C132+Sheet2!B$12 -> -0.35 | D133: 0.5821880897
C134: =C133+Sheet2!B$12 -> -0.345 | D134: 0.5891953535
C135: =C134+Sheet2!B$12 -> -0.34 | D135: 0.5961703228
C136: =C135+Sheet2!B$12 -> -0.335 | D136: 0.6031130864
C137: =C136+Sheet2!B$12 -> -0.33 | D137: 0.6100237334
C138: =C137+Sheet2!B$12 -> -0.325 | D138: 0.6169023536
C139: =C138+Sheet2!B$12 -> -0.32 | D139: 0.6237490371
C140: =C139+Sheet2!B$12 -> -0.315 | D140: 0.6305638743
C141: =C140+Sheet2!B$12 -> -0.31 | D141: 0.6373469562
C142: =C141+Sheet2!B$12 -> -0.305 | D142: 0.6440983744
C143: =C142+Sheet2!B$12 -> -0.3 | D143: 0.6508182207
C144: =C143+Sheet2!B$12 -> -0.295 | D144: 0.6575065875
C145: =C144+Sheet2!B$12 -> -0.29 | D145: 0.6641635676
C146: =C145+Sheet2!B$12 -> -0.285 | D146: 0.6707892543
C147: =C146+Sheet2!B$12 -> -0.28 | D147: 0.6773837415
C148: =C147+Sheet2!B$12 -> -0.275 | D148: 0.6839471232
C149: =C148+Sheet2!B$12 -> -0.27 | D149: 0.6904794943
C150: =C149+Sheet2!B$12 -> -0.265 | D150: 0.69698095
C151: =C150+Sheet2!B$12 -> -0.26 | D151: 0.7034515858
C152: =C151+Sheet2!B$12 -> -0.255 | D152: 0.709891498
C153: =C152+Sheet2!B$12 -> -0.25 | D153: 0.7163007831
C154: =C153+Sheet2!B$12 -> -0.245 | D154: 0.7226795382
C155: =C154+Sheet2!B$12 -> -0.24 | D155: 0.7290278611
C156: =C155+Sheet2!B$12 -> -0.235 | D156: 0.7353458496
C157: =C156+Sheet2!B$12 -> -0.23 | D157: 0.7416336025
C158: =C157+Sheet2!B$12 -> -0.225 | D158: 0.7478912188
C159: =C158+Sheet2!B$12 -> -0.22 | D159: 0.754118798
C160: =C159+Sheet2!B$12 -> -0.215 | D160: 0.7603164402
C161: =C160+Sheet2!B$12 -> -0.21 | D161: 0.766484246
C162: =C161+Sheet2!B$12 -> -0.205 | D162: 0.7726223164
C163: =C162+Sheet2!B$12 -> -0.2 | D163: 0.7787307531
C164: =C163+Sheet2!B$12 -> -0.195 | D164: 0.7848096581
C165: =C164+Sheet2!B$12 -> -0.19 | D165: 0.7908591339
C166: =C165+Sheet2!B$12 -> -0.185 | D166: 0.7968792839
C167: =C166+Sheet2!B$12 -> -0.18 | D167: 0.8028702114
C168: =C167+Sheet2!B$12 -> -0.175 | D168: 0.8088320208
C169: =C168+Sheet2!B$12 -> -0.17 | D169: 0.8147648166
C170: =C169+Sheet2!B$12 -> -0.165 | D170: 0.8206687041
C171: =C170+Sheet2!B$12 -> -0.16 | D171: 0.826543789
C172: =C171+Sheet2!B$12 -> -0.155 | D172: 0.8323901775
C173: =C172+Sheet2!B$12 -> -0.15 | D173: 0.8382079764
C174: =C173+Sheet2!B$12 -> -0.145 | D174: 0.8439972931
C175: =C174+Sheet2!B$12 -> -0.14 | D175: 0.8497582354
C176: =C175+Sheet2!B$12 -> -0.135 | D176: 0.8554909117
C177: =C176+Sheet2!B$12 -> -0.13 | D177: 0.8611954309
C178: =C177+Sheet2!B$12 -> -0.125 | D178: 0.8668719026
C179: =C178+Sheet2!B$12 -> -0.12 | D179: 0.8725204367
C180: =C179+Sheet2!B$12 -> -0.115 | D180: 0.8781411439
C181: =C180+Sheet2!B$12 -> -0.11 | D181: 0.8837341353
C182: =C181+Sheet2!B$12 -> -0.105 | D182: 0.8892995226
C183: =C182+Sheet2!B$12 -> -0.1 | D183: 0.894837418
C184: =C183+Sheet2!B$12 -> -0.095 | D184: 0.9003479345
C185: =C184+Sheet2!B$12 -> -0.09 | D185: 0.9058311853
C186: =C185+Sheet2!B$12 -> -0.085 | D186: 0.9112872844
C187: =C186+Sheet2!B$12 -> -0.08 | D187: 0.9167163464
C188: =C187+Sheet2!B$12 -> -0.075 | D188: 0.9221184863
C189: =C188+Sheet2!B$12 -> -0.07 | D189: 0.9274938199
C190: =C189+Sheet2!B$12 -> -0.065 | D190: 0.9328424634
C191: =C190+Sheet2!B$12 -> -0.06 | D191: 0.9381645336
C192: =C191+Sheet2!B$12 -> -0.055 | D192: 0.943460148
C193: =C192+Sheet2!B$12 -> -0.05 | D193: 0.9487294245
C194: =C193+Sheet2!B$12 -> -0.045 | D194: 0.9539724818
C195: =C194+Sheet2!B$12 -> -0.04 | D195: =EXP(x)-x^2 -> 0.9591894392
C196: =C195+Sheet2!B$12 -> -0.035 | D196: 0.9643804163
C197: =C196+Sheet2!B$12 -> -0.03 | D197: 0.9695455335
C198: =C197+Sheet2!B$12 -> -0.025 | D198: 0.974684912
C199: =C198+Sheet2!B$12 -> -0.02 | D199: 0.9797986733
C200: =C199+Sheet2!B$12 -> -0.015 | D200: 0.9848869396
... 3 more rows

Sheet Sheet3
